bitfinex-derivatives/quotes_ETHF0:USTF0_20250213
["timestamp","ask_amount","ask_price","bid_price","bid_amount"]
[1739422747982,3.2078,2722.7,2722.6,0.5541]
[1739422748375,3.2078,2722.7,2722.3,0.73454]
[1739422748582,0.73449,2722.6,2722.3,1.30764]
[1739422748976,3.2078,2722.7,2722.3,0.5731]
[1739422749177,3.2078,2722.7,2722.5,0.73448]
[1739422749378,0.5683,2722.9,2722.3,0.5731]
[1739422749583,0.73446,2722.7,2722.4,0.73453]
[1739422749982,0.73445,2722.8,2722.3,0.5731]
[1739422750286,0.5683,2722.9,2722.3,0.5731]
[1739422750480,0.73447,2722.7,2722.3,0.5731]
[1739422750683,0.5683,2722.9,2722.3,0.5731]
[1739422750980,0.73446,2722.7,2722.3,3.7809]
[1739422751189,0.73445,2722.8,2722.4,0.73452]
[1739422751385,0.73447,2722.7,2722.4,0.73452]
[1739422751586,0.73445,2722.8,2722.3,0.5731]
[1739422751887,1.30271,2722.9,2722.6,0.73447]
[1739422752080,1.85414537,2722.9,2722.6,0.73447]
[1739422752392,0.5683,2722.9,2722.3,0.5731]
[1739422752582,0.5683,2722.9,2722.6,0.73447]
[1739422752988,0.5683,2722.9,2722.7,0.73444]
[1739422753188,0.5683,2722.9,2722.6,0.73447]
[1739422753495,1.30271,2722.9,2722.6,0.73447]
[1739422754389,0.5683,2722.9,2722.3,0.5731]
[1739422754595,1.30271,2722.9,2722.6,0.73447]
[1739422754889,0.5683,2722.9,2722.3,0.5731]
[1739422755296,1.30272,2722.9,2722.5,0.73448]
[1739422755498,0.73443,2722.8,2722.5,0.73448]
[1739422756190,0.73444,2722.8,2722.5,0.73448]
[1739422756391,0.5683,2722.9,2722.3,0.5731]
[1739422756594,0.73453,2722.4,2722.3,0.5731]
[1739422756793,0.73452,2722.5,2722.3,0.5731]
[1739422756995,0.73453,2722.5,2722.3,0.5731]
[1739422757193,3.2078,2722.7,2722.3,0.5731]
[1739422757393,0.73451,2722.5,2722.3,0.5731]
[1739422757696,0.73449,2722.6,2722.3,1.30764]
[1739422757896,3.2078,2722.7,2722.3,0.5731]
[1739422758096,0.73449,2722.6,2722.3,1.30764]
[1739422758297,0.73444,2722.8,2722.3,0.5731]
[1739422758488,0.5683,2722.9,2722.3,0.5731]
[1739422758692,0.5683,2722.9,2722.7,0.73444]
[1739422758892,1.3027,2722.9,2722.7,0.73444]
[1739422759091,0.5683,2722.9,2722.7,0.73444]
[1739422759792,0.5683,2722.9,2722.5,3.2078]
[1739422759996,0.73444,2722.8,2722.5,0.7345]
[1739422760307,1.30271,2722.9,2722.6,42.08287]
[1739422760989,0.5683,2722.9,2722.6,41.3484]
[1739422761196,0.5683,2722.9,2722.6,42.08286]
[1739422761500,0.5683,2722.9,2722.6,41.3484]
[1739422761699,0.73444,2722.8,2722.6,41.3484]
[1739422761898,0.5683,2722.9,2722.7,0.73445]
[1739422762403,1.3027,2722.9,2722.7,0.73445]
[1739422762597,0.5683,2722.9,2722.7,0.73445]
[1739422762902,0.5683,2722.9,2722.6,41.3484]
[1739422763103,0.5683,2722.9,2722.8,0.73443]
[1739422763302,0.5683,2722.9,2722.7,1.29583]
[1739422763802,0.5683,2722.9,2722.8,0.73443]
[1739422764099,0.5683,2722.9,2722.7,0.5614]
[1739422764100,0.55256944,2723.0,2722.7,0.5614]
[1739422764400,0.73432,2723.2,2722.9,0.7344]
[1739422764599,3.77590974,2723.4,2722.9,0.7344]
[1739422764799,0.73431,2723.3,2722.9,0.73437]
[1739422765102,0.73434,2723.2,2722.9,0.73437]
[1739422765299,0.55256944,2723.3,2722.8,0.5573]
[1739422765500,0.73435,2723.1,2722.8,1.29171]
[1739422767399,0.73435,2723.1,2722.8,0.5573]
[1739422767904,0.73435,2723.1,2722.9,0.73439]
[1739422768105,0.73435,2723.2,2722.9,0.73439]
[1739422768305,0.73436,2723.1,2722.8,0.5573]
[1739422768703,0.55256944,2723.3,2722.8,1.29171]
[1739422768904,4.32847918,2723.4,2722.8,1.29171]
[1739422769106,4.32847918,2723.4,2722.9,0.73439]
[1739422769304,0.73435,2723.1,2722.9,0.73439]
[1739422769808,0.73433,2723.2,2722.8,0.5573]
[1739422770006,0.73435,2723.1,2722.9,0.73438]
[1739422770811,0.55256944,2723.3,2722.8,0.5573]
[1739422771010,0.73434,2723.2,2723.0,0.73436]
[1739422771212,3.77590974,2723.4,2723.1,0.73433]
[1739422771213,0.73431,2723.3,2723.1,0.73433]
[1739422771407,0.73434,2723.2,2722.8,3.74308351]
[1739422771610,0.73434,2723.2,2723.0,0.73437]
[1739422772000,0.73439,2723.0,2722.7,1.29583]
[1739422772204,0.73439,2723.0,2722.8,0.73442]
[1739422772514,0.55218458,2723.3,2722.7,0.5614]
[1739422772710,0.73433,2723.2,2723.0,0.73437]
[1739422772916,1.28649458,2723.3,2723.0,0.73435]
[1739422773112,0.73431,2723.3,2723.0,0.73435]
[1739422773305,0.73432,2723.3,2723.0,0.73435]
[1739422773609,0.73433,2723.2,2723.0,0.73435]
[1739422774004,3.77590974,2723.4,2722.7,0.5614]
[1739422774205,0.73432,2723.2,2723.0,0.73436]
[1739422774405,0.73435,2723.1,2722.9,0.73437]
[1739422774600,3.77590974,2723.4,2722.8,6.39358351]
[1739422774806,3.77590974,2723.4,2723.1,3.18578351]
[1739422775005,0.73433,2723.2,2722.9,0.73439]
[1739422775211,0.73434,2723.2,2723.0,1.687]
[1739422775406,0.73435,2723.1,2723.0,1.687]
[1739422775601,0.73429,2723.3,2723.0,1.687]
[1739422775805,0.73431,2723.3,2723.0,1.687]
[1739422776005,3.77590974,2723.4,2723.0,1.687]
[1739422776206,4.51017974,2723.4,2723.1,0.73434]
[1739422776406,3.77590974,2723.4,2723.0,1.687]
[1739422776608,0.73431,2723.3,2723.0,2.42137]
[1739422777212,0.73432,2723.2,2723.0,1.687]
[1739422777807,0.73429,2723.3,2723.0,1.687]
[1739422778013,0.73429,2723.3,2723.0,2.42137]
[1739422778014,0.7343,2723.3,2723.0,2.42137]
[1739422778208,3.77590974,2723.4,2722.8,6.39358351]
[1739422778507,3.77590974,2723.4,2722.6,1.1308]
[1739422778508,0.73448,2722.6,2722.5,3.2078]
[1739422778711,3.2078,2723.1,2722.5,3.2078]
[1739422778908,3.18578351,2723.3,2722.5,3.2078]
[1739422779209,0.73439,2723.0,2722.7,0.73444]
[1739422779414,0.73439,2723.0,2722.7,0.73443]
[1739422779813,3.73773048,2723.3,2722.2,48.84148351]
[1739422780012,0.73453,2722.5,2722.3,1.686]
[1739422780204,0.5602,2722.4,2722.3,1.686]
[1739422780712,0.5602,2722.4,2722.2,46.39028]
[1739422781110,0.5602,2722.4,2722.2,45.6557]
[1739422781511,1.29475,2722.4,2722.2,45.6557]
[1739422782420,0.73456,2722.3,2722.2,45.6557]
[1739422782617,0.5602,2722.4,2722.2,45.6557]
[1739422782812,1.28640697,2722.7,2722.2,48.84148351]
[1739422783011,3.2078,2722.8,2722.2,48.84148351]
[1739422783212,3.2078,2722.8,2722.6,0.73447]
[1739422783413,1.2711,2722.9,2722.6,0.73447]
[1739422784321,0.5367,2722.9,2722.2,48.84148351]
[1739422784618,0.73444,2722.8,2722.5,0.7345]
[1739422785023,0.55160921,2723.1,2722.2,48.84148351]
[1739422785223,0.73438,2723.0,2722.7,0.73444]
[1739422785519,0.73441,2722.9,2722.6,0.73447]
[1739422786119,0.73441,2722.9,2722.2,48.84148351]
[1739422786120,0.55160921,2723.1,2722.5,0.73449]
[1739422786522,0.73443,2722.8,2722.5,0.73449]
[1739422787119,0.55160921,2723.1,2722.4,0.73451]
[1739422787315,3.2078,2722.9,2722.2,48.84148351]
[1739422787515,3.2078,2722.9,2722.5,0.73449]
[1739422787715,3.2078,2722.9,2722.2,48.84148351]
[1739422787915,3.2078,2722.9,2722.7,0.73445]
[1739422788126,3.2078,2722.9,2722.6,0.73446]
[1739422788320,3.2078,2722.9,2722.7,0.5809]
[1739422788615,3.2078,2722.9,2722.7,1.31534]
[1739422788823,3.2078,2722.9,2722.8,1.1303]
[1739422789919,3.9422,2722.9,2722.8,1.1303]
[1739422790316,3.94222,2722.9,2722.7,0.5809]
[1739422791623,0.73443,2722.8,2722.7,0.5809]
[1739422792624,3.75940921,2723.1,2722.6,1.689]
[1739422792925,0.73446,2722.7,2722.5,0.7345]
[1739422793122,3.75940921,2723.1,2722.4,0.5761]
[1739422793323,3.2078,2722.8,2722.2,3.94237]
[1739422793620,0.7345,2722.6,2722.4,0.73453]
[1739422794121,1.1606,2722.7,2722.4,0.73453]
[1739422794322,1.89507,2722.7,2722.2,3.2078]
[1739422794521,1.89507,2722.7,2722.5,0.7345]
[1739422794716,1.1606,2722.7,2722.2,3.2078]
[1739422795125,1.1606,2722.7,2722.5,0.73449]
[1739422795426,1.1606,2722.7,2722.4,0.73453]
[1739422795618,1.89508,2722.7,2722.5,0.554]
[1739422795924,1.1606,2722.7,2722.5,1.28849]
[1739422796124,0.5759,2722.7,2722.6,0.73448]
[1739422796324,0.5759,2722.7,2722.5,0.554]
[1739422796520,0.5759,2722.7,2722.5,1.28849]
[1739422796822,0.5438,2722.9,2722.5,1.28849]
[1739422796823,0.73438,2723.0,2722.7,0.73444]
[1739422797029,1.30138,2723.0,2722.7,0.73444]
[1739422797624,0.73441,2722.9,2722.6,1.87116]
[1739422797928,0.73441,2722.9,2722.6,1.87117]
[1739422798323,0.73445,2722.7,2722.6,1.1367]
[1739422799026,0.73445,2722.7,2722.2,3.2078]
[1739422799223,0.73449,2722.6,2722.3,1.682]
[1739422799426,3.75278351,2723.0,2722.3,1.682]
[1739422799628,3.75278351,2723.0,2722.4,0.73452]
[1739422799629,0.73447,2722.7,2722.4,0.73452]
[1739422799930,0.55167272,2722.9,2722.3,1.682]
[1739422800128,0.55167272,2722.9,2722.8,0.73443]
[1739422800429,3.75278351,2723.0,2722.5,3.2078]
[1739422800621,3.75278351,2723.0,2722.6,1.1207]
[1739422800827,0.73445,2722.8,2722.6,1.1207]
[1739422801132,0.73445,2722.8,2722.6,1.85518]
[1739422801330,0.55167272,2722.9,2722.6,1.1207]
[1739422801531,0.73445,2722.7,2722.6,1.1207]
[1739422801832,0.73444,2722.8,2722.6,1.1207]
[1739422802025,0.55167272,2722.9,2722.6,1.1207]
[1739422802227,0.567,2723.0,2722.7,0.5505]
[1739422802424,1.30138,2723.0,2722.8,0.73441]
[1739422802623,1.30138,2723.0,2722.7,1.28493]
[1739422802827,1.30138,2723.0,2722.7,0.5505]
[1739422803022,0.567,2723.0,2722.9,0.7344]
[1739422803221,0.567,2723.0,2722.7,0.5505]
[1739422803431,1.30138,2723.0,2722.7,1.28494]
[1739422804026,0.567,2723.0,2722.8,0.73441]
[1739422804232,0.567,2723.0,2722.7,0.5505]
[1739422804432,0.73441,2722.9,2722.7,0.5505]
[1739422804632,1.30139,2723.0,2722.7,1.28494]
[1739422804832,0.567,2723.0,2722.8,0.73443]
[1739422805033,0.567,2723.0,2722.9,0.7344]
[1739422805336,0.567,2723.0,2722.8,0.73441]
[1739422805531,3.94215,2723.1,2722.7,0.5505]
[1739422805532,3.2078,2723.1,2722.7,0.5505]
[1739422805838,0.73442,2722.9,2722.7,0.5505]
[1739422806031,0.73443,2722.8,2722.7,0.5505]
[1739422806334,3.2078,2723.1,2722.7,0.5505]
[1739422806535,0.73442,2722.9,2722.7,0.5505]
[1739422806730,0.5896,2723.0,2722.7,0.5505]
[1739422806937,0.5568,2722.9,2722.7,0.5505]
[1739422807232,0.73443,2722.8,2722.7,0.5505]
[1739422808131,3.2078,2722.8,2722.3,1.672]
[1739422808332,3.2078,2722.8,2722.2,3.2078]
[1739422808333,0.73452,2722.5,2722.2,5.61537]
[1739422808534,0.73452,2722.5,2722.0,40.80550974]
[1739422808535,0.73462,2722.1,2722.0,0.00550974]
[1739422809337,3.94242,2722.1,2722.0,0.00550974]
[1739422809738,0.73462,2722.1,2722.0,0.00550974]
[1739422810139,3.94242,2722.1,2722.0,0.00550974]
[1739422814042,4.00350586,2722.1,2722.0,0.00550974]
[1739422814342,4.00350586,2722.1,2721.4,1.1061]
[1739422814343,9.26888586,2722.1,2721.4,0.548]
[1739422814635,3.2078,2721.8,2721.1,1.1591]
[1739422814836,0.73475,2721.6,2721.2,0.73484]
[1739422815042,1.1041,2721.7,2721.1,4.9065]
[1739422815246,1.83883,2721.7,2721.5,0.73476]
[1739422815538,1.84435974,2721.7,2721.1,4.91200974]
[1739422815842,1.10960974,2721.7,2721.6,0.73475]
[1739422816337,1.10960974,2721.7,2721.1,4.91200974]
[1739422816839,0.73476,2721.6,2721.4,0.73479]
[1739422817736,1.10960974,2721.7,2721.1,1.70420974]
[1739422817940,1.10960974,2721.7,2721.2,3.2078]
[1739422818132,0.73476,2721.6,2721.4,0.73479]
[1739422818337,1.84434974,2721.7,2721.5,41.53477]
[1739422818532,1.84434974,2721.7,2721.5,40.8]
[1739422818738,0.00550974,2721.7,2721.6,0.73475]
[1739422818934,0.73459,2722.2,2721.6,7.51908351]
[1739422819144,0.73461,2722.1,2721.9,0.73465]
[1739422819347,0.5752,2722.3,2721.8,0.73468]
[1739422819940,0.73465,2722.0,2721.8,0.73468]
[1739422820142,0.58070974,2722.3,2721.8,0.73468]
[1739422820340,0.73463,2722.1,2721.8,0.73468]
[1739422820542,0.58070974,2722.3,2721.8,0.73468]
[1739422820736,0.73462,2722.1,2721.9,0.73465]
[1739422821045,0.73464,2722.1,2721.7,0.5571]
[1739422821344,0.73466,2722.0,2721.8,0.73468]
[1739422821546,0.73463,2722.1,2721.9,0.73466]
[1739422821734,0.73461,2722.2,2721.9,0.73464]
[1739422821938,0.58070974,2722.3,2721.7,0.5571]
[1739422822242,0.7346,2722.2,2722.0,0.73462]
[1739422822445,0.58070974,2722.3,2721.7,0.5571]
[1739422822746,0.7346,2722.2,2722.0,0.73463]
[1739422823145,0.00550974,2722.3,2721.7,2.39388]
[1739422823740,0.74006974,2722.3,2722.1,0.7346]
[1739422824040,0.74008974,2722.3,2722.0,0.73463]
[1739422824244,0.74008974,2722.3,2721.9,3.18578351]
[1739422824445,3.2078,2722.1,2722.0,0.73464]
[1739422824635,0.73459,2722.2,2722.0,0.73464]
[1739422824837,0.00550974,2722.3,2721.9,3.18578351]
[1739422825043,0.73463,2722.1,2721.9,3.92045351]
[1739422825439,3.94243,2722.1,2721.9,3.92045351]
[1739422825842,3.2078,2722.1,2721.9,3.92045351]
[1739422826043,3.94242,2722.1,2721.9,3.92045351]
[1739422826442,3.2078,2722.1,2721.9,3.18578351]
[1739422826742,3.94244,2722.1,2721.9,3.92044351]
[1739422827441,3.2078,2722.1,2722.0,0.73464]
[1739422827645,0.74008974,2722.3,2721.9,3.18578351]
[1739422828039,0.74008974,2722.3,2722.0,0.73462]
[1739422828239,0.73459,2722.2,2722.0,0.73462]
[1739422828440,3.94239,2722.2,2722.0,0.73462]
[1739422828651,3.2078,2722.2,2722.0,0.73462]
[1739422828850,3.94241,2722.2,2722.0,0.73462]
[1739422829254,0.00550974,2722.3,2721.9,3.18578351]
[1739422829444,0.00550974,2722.3,2722.2,3.92037351]
[1739422829749,1.29238,2723.0,2722.7,0.73444]
[1739422829941,1.29238,2723.0,2722.8,1.1422]
[1739422830451,0.558,2723.0,2722.8,1.1422]
[1739422830653,0.00550974,2723.2,2722.8,1.1422]
[1739422830839,0.00550974,2723.2,2722.9,0.5913]
[1739422831046,0.73435,2723.1,2722.9,0.5913]
[1739422831247,3.94215,2723.1,2722.9,0.5913]
[1739422832354,0.73437,2723.0,2722.9,0.5913]
[1739422833648,3.2078,2723.1,2722.9,0.5913]
[1739422834044,0.73437,2723.0,2722.9,0.5913]
[1739422835152,3.94215,2723.1,2722.9,1.32568]
[1739422835455,3.2078,2723.1,2723.0,0.73437]
[1739422836058,0.00550974,2723.2,2723.1,0.73435]
[1739422836350,0.00550974,2723.2,2723.1,3.92013351]
[1739422837143,0.00550974,2723.2,2723.1,5.57713351]
[1739422837349,3.2078,2723.7,2723.6,0.73421]
[1739422837547,3.2078,2723.7,2723.5,0.73422]
[1739422837847,0.5646,2723.9,2723.6,1.6664]
[1739422838054,0.73418,2723.8,2723.6,1.6664]
[1739422838252,1.29875,2723.9,2723.6,2.4006]
[1739422838456,1.29873,2723.9,2723.6,2.4006]
[1739422838654,3.21129523,2724.0,2723.7,0.73418]
[1739422838959,0.00349523,2724.0,2723.8,0.73414]
[1739422839352,0.00349523,2724.0,2723.7,3.18578351]
[1739422840060,0.00349523,2724.0,2723.9,0.73413]
[1739422840353,0.00349523,2724.0,2723.7,3.18578351]
[1739422840553,0.00349523,2724.0,2723.8,0.73415]
[1739422840758,0.00349523,2724.0,2723.7,3.91995351]
[1739422841057,0.73760523,2724.0,2723.7,3.18578351]
[1739422841257,0.00349523,2724.0,2723.6,1.6664]
[1739422841451,0.73418,2723.7,2723.6,1.6664]
[1739422841860,0.73417,2723.8,2723.6,1.6664]
[1739422842059,0.73417,2723.8,2723.6,2.40061]
[1739422842253,0.00349523,2724.0,2723.6,1.6664]
[1739422842454,0.73418,2723.7,2723.6,1.6664]
[1739422842656,3.2078,2723.8,2723.2,3.2078]
[1739422842956,0.73426,2723.5,2723.1,1.66]
[1739422843158,0.73426,2723.5,2723.3,0.73428]
[1739422843352,0.5738,2723.6,2723.1,4.84578351]
[1739422843551,0.5738,2723.6,2723.1,5.58010351]
[1739422843859,0.73431,2723.3,2723.1,4.84578351]
[1739422844057,0.73432,2723.2,2723.1,4.84578351]
[1739422844360,3.2078,2723.5,2722.9,1.1206]
[1739422844560,0.73437,2723.0,2722.9,1.1206]
[1739422845060,0.73437,2723.0,2722.9,0.575]
[1739422845559,0.73445,2722.7,2722.6,0.00550974]
[1739422846460,0.73445,2722.7,2722.6,9.74e-06]
[1739422847256,6.73445,2722.7,2722.6,9.74e-06]
[1739422847758,7.28451836,2722.7,2722.6,9.74e-06]
[1739422850056,6.55006836,2722.7,2721.6,1.14]
[1739422850357,0.73472,2721.7,2721.6,1.14]
[1739422850763,3.2078,2722.0,2721.6,1.14]
[1739422851056,0.73472,2721.7,2721.6,1.14]
[1739422851262,0.73475,2721.6,2721.5,40.80550974]
[1739422851956,0.73475,2721.6,2721.5,0.00550974]
[1739422853562,1.30175,2721.6,2721.5,0.00550974]
[1739422854164,0.73475,2721.6,2721.5,0.00550974]
[1739422859659,3.92053351,2721.6,2721.5,0.00550974]
[1739422859864,1.837,2721.5,2719.6,3.2078]
[1739422860065,3.18578351,2719.8,2719.3,3.2078]
[1739422860362,3.18578351,2719.8,2719.2,0.5832]
[1739422860568,3.18578351,2719.5,2719.2,0.5832]
[1739422860761,0.73535,2719.4,2719.2,0.5832]
[1739422861061,6.39358351,2719.5,2719.2,0.5832]
[1739422861263,0.00550974,2719.6,2719.2,0.5832]
[1739422861458,0.73519,2720.0,2719.5,0.7353]
[1739422861661,0.7352,2720.0,2719.5,1.667]
[1739422862366,3.2078,2720.2,2719.4,3.2078]
[1739422862662,0.73528,2719.7,2719.5,1.669]
[1739422863161,0.73521,2719.9,2719.4,3.2078]
[1739422863365,3.99852729,2719.8,2719.3,1.1602]
[1739422863557,3.94314,2719.4,2719.3,1.1602]
[1739422863868,0.7354,2719.2,2719.1,0.00550974]
[1739422864067,4.73392729,2719.2,2719.1,0.00550974]
[1739422867968,0.73551,2718.8,2718.7,0.542]
[1739422868265,7.94183729,2718.8,2718.7,0.542]
[1739422869065,0.73556,2718.6,2718.5,0.00550974]
[1739422869469,0.5451,2718.7,2718.0,1.6815]
[1739422869773,4.73422729,2718.1,2718.0,0.5556]
[1739422870676,0.00550974,2718.3,2718.0,0.5556]
[1739422870878,0.73568,2718.2,2718.0,0.5556]
[1739422871075,0.73569,2718.2,2718.0,0.5556]
[1739422871271,0.7357,2718.1,2718.0,0.5556]
[1739422871567,0.73575,2717.9,2717.8,0.00550974]
[1739422872172,3.94355,2717.9,2717.8,0.00550974]
[1739422872575,0.73594,2717.2,2717.1,0.5518]
[1739422872975,3.99852729,2717.3,2717.1,0.5518]
[1739422873470,4.73444729,2717.3,2717.1,0.5518]
[1739422873683,3.99852729,2717.3,2717.1,0.5518]
[1739422873870,7.20632729,2717.6,2717.1,0.5518]
[1739422874065,0.7359,2717.4,2717.1,0.5518]
[1739422874265,0.73594,2717.2,2717.1,0.5518]
[1739422874472,0.73593,2717.3,2717.1,0.5518]
[1739422874667,7.20632729,2717.6,2717.1,0.5518]
[1739422874868,3.94364,2717.6,2717.2,0.73593]
[1739422875175,3.2078,2717.6,2717.1,0.5518]
[1739422875474,7.20632729,2718.2,2717.4,0.73589]
[1739422875664,0.73579,2717.8,2717.5,2.2616]
[1739422875865,7.20632729,2718.2,2717.6,0.5532]
[1739422876270,0.73578,2717.8,2717.6,0.5532]
[1739422876570,7.20632729,2718.2,2717.6,0.5532]
[1739422876772,0.7358,2717.7,2717.6,0.5532]
[1739422877471,3.2078,2717.9,2717.6,0.5532]
[1739422877672,0.7358,2717.7,2717.6,0.5532]
[1739422878470,7.20632729,2717.9,2717.1,0.5518]
[1739422878669,7.94216729,2717.6,2717.2,0.73592]
[1739422878976,3.2078,2717.6,2717.2,0.73592]
[1739422879176,3.2078,2717.6,2717.1,2.2218]
[1739422879581,0.73594,2717.2,2717.1,2.2218]
[1739422881475,3.2078,2717.3,2717.1,2.2218]
[1739422881668,3.2078,2717.3,2717.2,0.73594]
[1739422881980,3.2078,2717.3,2717.1,2.95775]
[1739422881981,3.94371,2717.3,2717.1,2.95775]
[1739422882182,0.73594,2717.2,2717.1,2.2218]
[1739422882574,0.73594,2717.2,2717.1,0.5518]
[1739422882775,0.73597,2717.1,2717.0,2.243]
[1739422883882,0.73597,2717.1,2717.0,1.666]
[1739422884175,3.2078,2717.6,2717.0,1.666]
[1739422884382,3.2078,2717.6,2717.4,0.73587]
[1739422884781,3.94364,2717.6,2717.4,0.73587]
[1739422885177,3.2078,2717.6,2717.5,0.73586]
[1739422885571,3.2078,2717.6,2717.5,2.40286]
[1739422886181,3.2078,2717.6,2717.5,1.667]
[1739422886381,3.94363,2717.6,2717.5,1.667]
[1739422887370,0.00550974,2718.3,2717.5,4.8748]
[1739422887580,0.73568,2718.2,2717.7,3.99852729]
[1739422887782,0.00550974,2718.3,2718.0,0.73571]
[1739422887982,0.00550974,2718.3,2718.1,0.5915]
[1739422888183,0.73567,2718.2,2718.1,0.5915]
[1739422888785,0.00550974,2718.3,2718.1,0.5915]
[1739422889197,0.00550974,2718.3,2718.1,1.32718]
[1739422889387,0.00550974,2718.3,2718.1,1.1341]
[1739422889882,0.00550974,2718.3,2718.2,0.73567]
[1739422890984,0.00550974,2718.3,2718.1,4.8793]
[1739422891283,3.2078,2718.7,2718.1,4.8793]
[1739422891483,3.94336,2718.7,2718.3,0.73563]
[1739422891682,0.73556,2718.6,2718.3,0.73563]
[1739422892377,3.2078,2718.7,2718.4,1.666]
[1739422892688,3.21332049,2718.7,2718.4,1.666]
[1739422892890,3.94887049,2718.7,2718.4,1.666]
[1739422893191,3.21332049,2718.7,2718.4,1.666]
[1739422893386,3.94887049,2718.7,2718.4,2.4016]
[1739422893787,0.74105049,2718.7,2718.6,0.00303913]
[1739422894287,0.00552049,2718.7,2718.6,0.00303913]
[1739422894775,0.74105049,2718.7,2718.6,0.00303913]
[1739422894975,3.94885049,2718.7,2718.6,0.00303913]
[1739422896587,3.94885049,2718.7,2718.6,9.13e-06]
[1739422898286,9.21332049,2718.7,2717.1,3.2078]
[1739422898589,0.73589,2717.4,2717.2,1.668]
[1739422898780,0.73587,2717.5,2717.2,2.40392]
[1739422898986,0.73587,2717.5,2717.3,0.73591]
[1739422899182,3.2078,2717.7,2717.2,1.668]
[1739422899493,0.73584,2717.6,2717.2,1.67352049]
[1739422899790,0.7359,2717.4,2717.2,1.67352049]
[1739422899986,3.2078,2717.7,2717.2,1.67352049]
[1739422900191,0.73591,2717.3,2717.2,0.00552049]
[1739422900991,3.78461631,2717.7,2717.2,0.00552049]
[1739422901387,0.73591,2717.3,2717.2,0.00552049]
[1739422903702,3.78461631,2717.4,2717.2,0.00552049]
[1739422903990,0.73591,2717.3,2717.2,0.00552049]
[1739422905294,1.31481,2717.3,2717.2,0.00552049]
[1739422905792,0.5789,2717.3,2716.5,3.2078]
[1739422906094,0.73617,2716.4,2716.1,1.31092]
[1739422906295,3.2078,2716.6,2716.1,0.5747]
[1739422906992,3.21332049,2716.6,2716.5,0.73613]
[1739422907190,3.94943049,2716.6,2716.3,0.73616]
[1739422907384,3.94943049,2716.6,2716.2,0.573]
[1739422907385,3.21332049,2716.6,2716.4,0.73614]
[1739422907590,3.21332049,2716.6,2716.2,0.573]
[1739422907785,0.00552049,2716.6,2716.3,1.669]
[1739422907993,0.57127743,2717.2,2716.5,3.99852729]
[1739422908192,0.57127743,2717.2,2717.0,0.73599]
[1739422908488,0.73593,2717.3,2716.9,0.73601]
[1739422908798,3.2078,2717.4,2716.4,0.5796]
[1739422908989,3.2078,2717.1,2716.4,3.7874]
[1739422909190,0.73603,2716.9,2716.6,0.7361]
[1739422909391,3.2078,2717.1,2716.4,2.2556]
[1739422909693,3.2078,2717.1,2716.5,3.2078]
[1739422910401,3.94378,2717.1,2716.8,0.73603]
[1739422911100,3.2078,2717.1,2716.7,0.5866]
[1739422911307,3.2078,2717.1,2716.4,0.5796]
[1739422911506,0.73604,2716.9,2716.6,0.73609]
[1739422911802,3.2078,2717.1,2716.5,0.5866]
[1739422911994,0.73601,2717.0,2716.5,0.5866]
[1739422912200,0.73599,2717.0,2716.7,0.73606]
[1739422912604,0.73602,2716.9,2716.6,0.73609]
[1739422912905,0.73607,2716.8,2716.5,1.32272]
[1739422913404,3.2078,2717.1,2716.5,0.5866]
[1739422913605,3.7706,2717.1,2716.5,0.5866]
[1739422914499,3.2078,2717.1,2716.5,0.5866]
[1739422914705,3.2078,2717.1,2716.6,0.73609]
[1739422914706,0.73605,2716.8,2716.6,0.73609]
[1739422914895,0.73605,2716.8,2716.5,0.5866]
[1739422915296,3.2078,2717.1,2716.8,0.73604]
[1739422915498,3.94377,2717.1,2716.9,0.73601]
[1739422915703,3.2078,2717.1,2716.5,0.5866]
[1739422915902,3.2078,2717.1,2716.9,0.73601]
[1739422916300,3.2078,2717.1,2716.5,0.5866]
[1739422916706,3.94377,2717.1,2716.5,0.5866]
[1739422916901,3.2078,2717.1,2716.5,0.5866]
[1739422917107,0.73603,2716.9,2716.7,0.73607]
[1739422917301,3.2078,2717.1,2716.6,0.73609]
[1739422917605,0.73603,2716.9,2716.6,0.73609]
[1739422917902,3.2078,2717.1,2716.5,3.00072]
[1739422918107,0.73608,2716.7,2716.5,1.32273]
[1739422918305,0.73608,2716.7,2716.5,0.5866]
[1739422918498,0.5799,2717.0,2716.5,0.5866]
[1739422918499,0.7361,2716.6,2716.5,0.5866]
[1739422918706,3.2078,2716.8,2716.2,0.573]
[1739422918903,0.73618,2716.3,2716.1,0.00552049]
[1739422919112,5.83871729,2716.7,2716.1,0.74176049]
[1739422919303,0.73616,2716.4,2716.1,0.00552049]
[1739422919505,3.2078,2716.5,2716.1,0.00552049]
[1739422919810,3.2078,2716.5,2716.4,0.73616]
[1739422920003,0.5819,2716.9,2716.2,3.99852729]
[1739422920203,1.31792,2716.9,2716.3,3.2078]
[1739422920505,0.5819,2716.9,2716.3,3.783]
[1739422920815,0.73612,2716.6,2716.3,1.31137]
[1739422921105,0.73614,2716.5,2716.3,2.2572]
[1739422921309,0.73612,2716.6,2716.3,2.99338]
[1739422921609,3.94389,2716.7,2716.4,0.73616]
[1739422922006,3.2078,2716.7,2716.3,2.2572]
[1739422922206,0.7361,2716.6,2716.3,2.99337]
[1739422922711,0.7361,2716.6,2716.3,2.2572]
[1739422922913,3.2078,2716.7,2716.6,0.7361]
[1739422923109,0.5819,2716.9,2716.3,2.2572]
[1739422923306,0.73612,2716.6,2716.3,2.99337]
[1739422923508,0.5819,2716.9,2716.3,2.2572]
[1739422923712,3.2078,2717.0,2716.3,7.30542]
[1739422923909,3.2078,2717.0,2716.5,3.99852729]
[1739422924109,3.2078,2717.0,2716.8,0.73603]
[1739422924308,3.94381,2717.0,2716.7,0.73605]